bitfinex-derivatives/quotes_SOLF0:USTF0_20241217
["timestamp","ask_amount","ask_price","bid_price","bid_amount"]
[1734398224814,1.6305,213.25,213.2,5.0043]
[1734398225513,1.6305,213.25,213.2,2.66]
[1734398225824,1.6305,213.25,213.12,2.66]
[1734398226013,2.56836635,213.25,213.12,2.66]
[1734398226217,2.56836635,213.25,213.13,2.345]
[1734398226218,2.66,213.24,213.13,2.345]
[1734398227223,2.66,213.24,213.12,2.66]
[1734398227522,2.3444,213.2,213.14,2.345]
[1734398227922,2.3446,213.18,213.12,5.0051]
[1734398228516,2.66,213.19,213.06,1.598]
[1734398228821,16.71221144,213.18,213.05,2.66]
[1734398229014,2.66,213.19,213.03,2.66]
[1734398229015,16.71221144,213.14,213.03,2.66]
[1734398229320,3.1608,213.13,212.97,1.5057]
[1734398229516,3.1608,213.13,212.98,2.66]
[1734398229823,3.1608,213.13,213.03,2.3462]
[1734398231526,2.3455,213.1,213.03,2.3462]
[1734398232624,2.3457,213.08,213.01,2.3464]
[1734398232817,3.1608,213.13,212.99,5.68786478]
[1734398233014,1.5167,213.13,212.99,22.40007622]
[1734398233220,1.5167,213.13,213.03,2.3462]
[1734398233423,1.5167,213.13,213.04,2.66]
[1734398233621,1.5167,213.13,213.05,2.66]
[1734398233825,1.5167,213.13,212.99,22.40007622]
[1734398233826,1.5167,213.13,213.06,2.66]
[1734398234517,1.5167,213.13,212.99,22.40007622]
[1734398234823,1.5167,213.13,213.0,2.66]
[1734398235327,2.3457,213.08,213.01,2.3464]
[1734398235927,1.5167,213.13,213.0,2.66]
[1734398236426,2.3453,213.12,213.03,2.3461]
[1734398236728,1.5167,213.13,213.0,2.66]
[1734398237227,14.06,213.35,213.03,16.71221144]
[1734398237425,3.2136,213.24,213.07,16.71221144]
[1734398237623,4.8085,213.24,213.08,2.66]
[1734398237919,0.93795432,213.23,213.08,2.66]
[1734398238125,2.3446,213.18,213.12,2.3452]
[1734398238621,2.3446,213.18,213.11,2.3453]
[1734398239127,5.76612157,213.22,213.11,2.3453]
[1734398239326,16.71221144,213.2,213.11,2.66]
[1734398239517,16.71221144,213.2,213.07,2.66]
[1734398240029,16.71221144,213.2,213.08,2.3457]
[1734398240216,16.71221144,213.2,213.07,2.66]
[1734398241017,2.3447,213.17,213.07,2.66]
[1734398241227,2.3447,213.17,213.08,1.6312]
[1734398241921,16.71221144,213.2,213.03,16.71221144]
[1734398242324,16.71221144,213.2,213.04,2.66]
[1734398243027,2.3451,213.14,213.06,2.3458]
[1734398243325,16.71221144,213.2,213.04,2.66]
[1734398243521,2.345,213.15,213.04,2.66]
[1734398243922,2.66,213.21,213.04,2.66]
[1734398244228,2.3446,213.19,213.04,2.66]
[1734398245528,2.3446,213.19,213.12,2.3452]
[1734398245823,2.3446,213.19,213.12,5.0052]
[1734398246225,0.93795432,213.23,213.12,2.66]
[1734398247523,2.3441,213.22,213.12,2.66]
[1734398248526,2.3441,213.22,213.15,2.3449]
[1734398249527,0.93795432,213.23,213.13,2.66]
[1734398250032,2.3443,213.2,213.14,2.345]
[1734398250729,2.3445,213.19,213.13,2.66]
[1734398251227,2.3447,213.17,213.11,2.66]
[1734398251527,16.71221144,213.17,213.04,5.76652253]
[1734398251728,1.5906,213.16,213.0,1.6312]
[1734398252034,1.5906,213.16,213.02,2.3463]
[1734398252035,16.71221144,213.13,213.02,2.3463]
[1734398252231,1.5755,213.12,213.01,2.66]
[1734398252527,3.1986,213.12,213.01,2.66]
[1734398252728,16.71221144,213.09,212.96,2.66]
[1734398252923,16.71221144,213.09,212.96,2.3469]
[1734398252924,2.3462,213.03,212.96,2.3469]
[1734398253129,2.3462,213.03,212.96,5.0069]
[1734398253326,2.3462,213.03,212.96,2.66]
[1734398254228,2.3466,213.0,212.93,2.66]
[1734398254426,16.71221144,213.05,212.93,2.66]
[1734398254730,2.3466,213.0,212.9,2.3476]
[1734398255030,16.71221144,213.01,212.86,1.6541]
[1734398255228,2.3469,212.97,212.89,2.3477]
[1734398255432,2.3469,212.97,212.89,5.0077]
[1734398255829,1.5254,212.98,212.89,2.66]
[1734398256134,1.5254,212.98,212.9,2.3476]
[1734398256335,1.5254,212.98,212.89,2.66]
[1734398256730,2.3469,212.97,212.89,5.0077]
[1734398256928,1.5254,212.98,212.82,16.71221144]
[1734398257229,1.5254,212.98,212.85,5.65438082]
[1734398257433,1.5254,212.98,212.86,2.66]
[1734398257842,2.3472,212.95,212.87,2.3479]
[1734398258933,2.3469,212.97,212.89,2.3477]
[1734398259137,4.1854,212.98,212.85,8.31438082]
[1734398259436,1.5222,212.99,212.86,16.71221144]
[1734398259630,2.66,213.05,212.86,16.71221144]
[1734398260535,2.3465,213.01,212.86,16.71221144]
[1734398261236,2.3463,213.03,212.86,16.71221144]
[1734398261737,2.3461,213.04,212.86,16.71221144]
[1734398261932,2.3461,213.04,212.9,16.71221144]
[1734398262233,2.3461,213.04,212.91,4.1762]
[1734398262432,10.21928812,213.06,212.97,2.3469]
[1734398263939,2.3463,213.03,212.96,2.66]
[1734398264132,2.3463,213.03,212.95,2.66]
[1734398264435,10.21928812,213.06,212.95,2.66]
[1734398265036,2.3461,213.04,212.97,2.3469]
[1734398266338,2.3465,213.01,212.95,5.0071]
[1734398267137,10.21928812,213.06,212.95,2.66]
[1734398267337,16.71221144,213.01,212.9,2.66]
[1734398267636,0.93896713,213.0,212.89,2.66]
[1734398267842,2.347,212.96,212.91,2.3475]
[1734398268543,2.3469,212.98,212.91,2.3475]
[1734398268839,0.93896713,213.0,212.91,2.3475]
[1734398269233,0.93896713,213.0,212.9,2.66]
[1734398269643,2.3469,212.97,212.9,2.66]
[1734398269942,0.93896713,213.0,212.9,2.66]
[1734398270834,2.3468,212.98,212.91,2.3474]
[1734398271234,2.3468,212.98,212.9,2.66]
[1734398271741,2.3469,212.97,212.92,2.3474]
[1734398273137,0.93896713,213.0,212.89,2.66]
[1734398273837,0.93896713,213.0,212.9,1.6249]
[1734398274852,0.93896713,213.0,212.94,2.3472]
[1734398275149,0.93896713,213.0,212.94,5.0072]
[1734398277152,0.93896713,213.0,212.94,2.66]
[1734398277750,2.3468,212.98,212.94,2.66]
[1734398278960,0.93896713,213.0,212.94,2.66]
[1734398279550,0.93896713,213.0,212.99,2.3467]
[1734398280455,0.93896713,213.0,212.99,5.0067]
[1734398280650,21.35681144,213.16,212.99,2.66]
[1734398280862,7.86989136,213.14,212.99,2.66]
[1734398281547,2.3451,213.13,213.06,2.3458]
[1734398281753,2.3451,213.13,213.06,5.0058]
[1734398282157,5.52479136,213.14,213.06,2.66]
[1734398282359,5.52479136,213.14,213.04,2.346]
[1734398282559,16.71221144,213.12,213.01,2.66]
[1734398282954,2.66,213.13,213.01,2.66]
[1734398283555,2.3453,213.12,213.05,2.3459]
[1734398283751,2.66,213.13,213.01,2.66]
[1734398283970,4.6446,213.16,213.01,2.66]
[1734398284653,4.6446,213.16,213.02,16.71221144]
[1734398285254,4.6446,213.16,213.1,2.3454]
[1734398285856,1.5451,213.16,213.12,2.3452]
[1734398286259,1.5451,213.16,213.13,2.3451]
[1734398286655,16.71221144,213.22,213.09,2.66]
[1734398286959,1.642,213.24,213.09,2.66]
[1734398287366,1.642,213.24,213.17,2.3446]
[1734398287564,5.4771,213.25,213.17,2.3446]
[1734398288057,3.1332,213.25,213.16,2.66]
[1734398288761,3.1332,213.25,213.19,2.3444]
[1734398288957,3.1332,213.25,213.16,2.66]
[1734398288958,1.5108,213.25,213.16,2.66]
[1734398289259,16.71221144,213.34,213.16,2.66]
[1734398289761,16.71221144,213.34,213.15,1.5721]
[1734398289963,22.33969345,213.34,213.17,8.35840957]
[1734398291358,16.71221144,213.34,213.17,8.35840957]
[1734398291564,4.6526,213.37,213.18,16.71221144]
[1734398291765,2.3427,213.35,213.28,2.3434]
[1734398291966,2.3427,213.35,213.28,5.0034]
[1734398292370,4.6526,213.37,213.3,2.3432]
[1734398292560,4.6526,213.37,213.28,2.66]
[1734398292759,16.71221144,213.45,213.28,2.66]
[1734398292961,19.05381144,213.45,213.37,2.3424]
[1734398293268,24.6769307,213.45,213.36,2.66]
[1734398293567,24.6769307,213.45,213.37,2.66]
[1734398293774,2.3417,213.44,213.37,2.66]
[1734398294364,16.71221144,213.45,213.37,2.66]
[1734398294566,16.71221144,213.45,213.37,5.0024]
[1734398295261,16.71221144,213.45,213.38,2.3423]
[1734398295461,2.3416,213.46,213.37,2.66]
[1734398295462,4.7427,213.48,213.37,2.66]
[1734398295870,4.7427,213.48,213.4,2.3421]
[1734398296065,4.7427,213.48,213.37,2.66]
[1734398296967,16.71221144,213.53,213.37,2.66]
[1734398297462,16.71221144,213.49,213.37,2.66]
[1734398297865,2.3415,213.46,213.37,2.3425]
[1734398298070,2.3415,213.46,213.38,2.66]
[1734398298664,7.1902,213.48,213.38,5.0023]
[1734398298866,4.8489,213.48,213.38,2.66]
[1734398300070,7.1902,213.48,213.39,2.3422]
[1734398300371,4.8489,213.48,213.38,2.66]
[1734398300563,4.8489,213.48,213.34,5.70911655]
[1734398300564,4.8489,213.48,213.39,2.66]
[1734398301472,2.3416,213.45,213.39,2.66]
[1734398301668,4.8489,213.48,213.39,2.66]
[1734398301972,2.3418,213.44,213.36,2.3425]
[1734398302174,2.3418,213.44,213.37,2.66]
[1734398302874,2.3418,213.44,213.34,5.70911655]
[1734398303065,16.71221144,213.45,213.34,2.66]
[1734398303269,16.71221144,213.41,213.25,16.71221144]
[1734398303475,16.71221144,213.41,213.29,2.66]
[1734398303665,4.8489,213.48,213.28,2.66]
[1734398303666,16.71221144,213.37,213.28,2.66]
[1734398303870,1.6197,213.36,213.27,2.66]
[1734398304070,4.716,213.36,213.27,2.66]
[1734398304472,4.716,213.36,213.27,5.0036]
[1734398304971,4.716,213.36,213.3,2.3432]
[1734398305171,4.716,213.36,213.29,2.66]
[1734398305572,16.71221144,213.41,213.29,2.66]
[1734398306574,16.71221144,213.41,213.32,2.343]
[1734398306575,19.05431144,213.41,213.32,2.343]
[1734398306775,19.05431144,213.41,213.29,2.66]
[1734398307475,16.71221144,213.41,213.3,2.66]
[1734398308170,10.3448287,213.44,213.26,5.5674921]
[1734398308171,16.71221144,213.37,213.26,5.5674921]
[1734398308475,16.71221144,213.37,213.24,2.3438]
[1734398308671,16.71221144,213.33,213.25,2.66]
[1734398308971,1.5452,213.32,213.25,2.66]
[1734398309476,2.3432,213.31,213.25,2.66]
[1734398310068,1.5452,213.32,213.25,5.0038]
[1734398310870,1.5452,213.32,213.25,2.66]
[1734398311273,1.5452,213.32,213.23,5.68741324]
[1734398311574,1.5452,213.32,213.23,8.34741324]
[1734398311768,1.5452,213.32,213.22,5.004]
[1734398311972,1.5452,213.32,213.22,2.66]
[1734398313578,1.5452,213.32,213.2,5.52156284]
[1734398313775,1.5452,213.32,213.2,8.18156284]
[1734398314078,2.3439,213.25,213.18,5.0046]
[1734398314474,19.37221144,213.29,213.18,2.66]
[1734398315068,19.05571144,213.29,213.22,2.3441]
[1734398315276,16.71221144,213.29,213.22,2.3441]
[1734398316574,1.5452,213.32,213.23,2.66]
[1734398316769,1.5452,213.32,213.24,2.66]
[1734398316975,1.5452,213.32,213.25,2.66]
[1734398317178,1.5452,213.32,213.29,2.3433]
[1734398317378,1.5452,213.32,213.28,2.66]
[1734398318975,1.5452,213.32,213.29,2.3433]
[1734398320081,1.5452,213.32,213.28,5.0035]
[1734398322281,16.71221144,213.37,213.3,2.3432]
[1734398322585,16.71221144,213.41,213.28,2.66]
[1734398323078,4.7698,213.43,213.28,19.37221144]
[1734398324575,2.3421,213.41,213.34,2.3427]
[1734398324784,2.3421,213.41,213.35,2.66]
[1734398324982,4.7698,213.43,213.35,2.66]
[1734398325188,7.1117,213.43,213.35,2.66]
[1734398325383,4.7698,213.43,213.35,2.66]
[1734398325576,3.1215,213.43,213.35,2.66]
[1734398325881,1.5895,213.5,213.35,2.66]
[1734398326078,4.6027,213.5,213.35,2.66]
[1734398326481,2.3412,213.49,213.42,2.3419]
[1734398326684,2.3412,213.49,213.42,5.0019]
[1734398327776,2.3413,213.48,213.42,2.66]
[1734398328383,2.3415,213.46,213.42,2.66]
[1734398328582,7.2427,213.5,213.38,2.64]
[1734398328791,16.71221144,213.47,213.38,2.64]
[1734398328983,4.6027,213.5,213.38,2.64]
[1734398329480,4.6027,213.5,213.43,2.3418]
[1734398329685,4.6027,213.5,213.43,4.9818]
[1734398330087,4.6027,213.5,213.41,2.64]
[1734398330284,4.6027,213.5,213.4,2.64]
[1734398331286,2.3414,213.47,213.4,4.9821]
[1734398331988,2.3414,213.47,213.41,2.342]
[1734398332380,4.6027,213.5,213.4,2.64]
[1734398332582,4.6027,213.5,213.45,2.3415]
[1734398332780,4.6027,213.5,213.45,2.64]
[1734398332986,1.5114,213.5,213.45,2.64]
[1734398333183,16.71221144,213.59,213.49,2.3411]
[1734398333489,2.3404,213.57,213.45,2.64]
[1734398333793,16.71221144,213.59,213.49,2.3411]
[1734398334287,2.3406,213.55,213.48,2.3413]
[1734398334788,2.3406,213.55,213.45,2.64]
[1734398335687,2.3406,213.55,213.48,2.3413]
[1734398335891,2.3406,213.55,213.45,2.64]
[1734398336191,2.3404,213.57,213.5,2.341]
[1734398336688,2.3404,213.56,213.5,2.341]
[1734398337493,2.3402,213.58,213.5,2.64]
[1734398337686,16.71221144,213.59,213.5,2.64]
[1734398337890,4.7091,213.61,213.5,2.64]
[1734398338189,7.049,213.61,213.5,2.64]
[1734398338399,4.7091,213.61,213.5,2.64]
[1734398339593,4.7091,213.61,213.51,2.64]
[1734398340194,4.7091,213.61,213.51,4.9809]
[1734398340698,2.3403,213.57,213.51,4.9809]
[1734398340989,4.7091,213.61,213.51,2.3409]
[1734398341189,16.71221144,213.59,213.49,2.64]
[1734398341396,16.71221144,213.59,213.48,2.64]
[1734398341791,4.7091,213.61,213.48,2.64]
[1734398342389,4.7091,213.61,213.52,2.3408]
[1734398342596,4.7091,213.61,213.48,2.64]
[1734398343996,10.42325793,213.6,213.48,2.64]
[1734398344800,10.42325793,213.6,213.49,2.3411]
[1734398344994,10.42325793,213.57,213.49,2.3411]
[1734398345190,10.42325793,213.57,213.48,2.64]
[1734398345393,2.3405,213.55,213.5,2.341]
[1734398345693,10.42325793,213.57,213.48,2.64]
[1734398345998,10.42325793,213.57,213.47,2.64]
[1734398346501,10.42325793,213.57,213.47,4.9813]
[1734398346698,10.42325793,213.54,213.41,10.42325793]
[1734398346900,10.42325793,213.54,213.42,2.64]
[1734398347296,2.341,213.51,213.44,2.3416]
[1734398347904,2.3412,213.49,213.43,2.3418]
[1734398348105,10.42325793,213.51,213.4,5.71543574]
[1734398348406,4.6771,213.5,213.42,2.64]
[1734398348606,2.3412,213.49,213.43,2.3418]
[1734398348808,3.0913,213.5,213.42,2.64]
[1734398349503,1.5423,213.5,213.42,2.64]
[1734398349905,1.5997,213.55,213.44,10.42325793]
[1734398350105,10.42325793,213.6,213.44,10.42325793]
[1734398350300,10.42325793,213.6,213.47,10.42325793]
[1734398350501,10.42325793,213.6,213.48,2.64]
[1734398350707,2.3403,213.58,213.51,2.3408]
[1734398351009,10.42325793,213.6,213.51,2.3408]
[1734398351909,10.42325793,213.6,213.53,2.3407]
[1734398352113,1.6427,213.61,213.52,2.64]
[1734398352813,1.6427,213.61,213.55,2.3405]
[1734398353014,1.5997,213.63,213.53,10.42325793]
[1734398353213,10.42325793,213.69,213.53,10.42325793]
[1734398353610,15.16495793,213.72,213.56,10.42325793]
[1734398353808,4.7417,213.72,213.59,10.42325793]
[1734398354013,4.7417,213.72,213.62,10.42325793]
[1734398354209,5.72989765,213.77,213.67,2.3392]
[1734398354417,5.72989765,213.77,213.65,10.42325793]
[1734398354418,10.42325793,213.78,213.68,2.64]
[1734398354615,2.338,213.78,213.7,2.3388]
[1734398355115,2.338,213.78,213.68,13.06325793]
[1734398355116,1.5877,213.79,213.68,13.06325793]
[1734398355311,10.42325793,213.81,213.68,13.06325793]
[1734398355913,2.3378,213.8,213.72,2.3386]
[1734398356220,5.67371667,213.82,213.73,2.64]
[1734398356418,1.582,213.81,213.73,2.64]
[1734398356615,2.3379,213.79,213.73,2.64]
[1734398357713,2.3382,213.77,213.73,2.64]
[1734398357920,18.2242984,213.81,213.69,2.64]
[1734398358111,18.2242984,213.81,213.69,4.979]
[1734398358311,2.338,213.79,213.69,2.64]
[1734398358513,1.582,213.81,213.69,2.64]
[1734398359019,2.3379,213.79,213.71,2.3387]
[1734398359218,2.3379,213.79,213.69,2.64]
[1734398359620,1.582,213.81,213.7,16.6422984]
[1734398359913,1.582,213.81,213.74,2.3384]
[1734398360113,1.582,213.81,213.75,2.64]
[1734398361019,1.582,213.81,213.75,4.9783]
[1734398361214,2.64,213.88,213.75,4.9783]
[1734398361215,247.55020863,214.06,213.78,16.6422984]
[1734398361421,1.5523,213.94,213.78,16.6422984]
[1734398361719,2.3369,213.88,213.8,2.3378]
[1734398362111,2.3369,213.88,213.81,2.64]
[1734398362314,2.6652,213.9,213.81,4.9776]
[1734398362819,0.3284,213.9,213.81,4.9776]
[1734398363619,0.3284,213.9,213.79,2.3378]
[1734398363821,0.3284,213.9,213.8,2.64]
[1734398364022,2.3369,213.88,213.81,2.64]
[1734398364917,0.3284,213.9,213.81,2.64]
[1734398365214,0.3284,213.9,213.82,2.64]
[1734398365415,0.3284,213.9,213.83,2.3374]
[1734398366516,2.6651,213.9,213.83,2.3374]
[1734398366819,0.3284,213.9,213.82,2.64]
[1734398367014,2.6652,213.9,213.82,2.64]
[1734398367225,0.3284,213.9,213.82,2.64]
[1734398368314,0.3284,213.9,213.85,2.3372]
[1734398368513,0.3284,213.9,213.84,2.64]
[1734398370415,0.3284,213.9,213.88,2.3368]
[1734398370621,0.3284,213.9,213.89,2.64]
[1734398371722,4.7667,214.01,213.89,19.2822984]
[1734398372321,4.7667,214.01,213.93,16.6422984]
[1734398372519,4.7667,214.01,213.94,2.64]
[1734398372718,3.1565,214.01,213.94,2.64]
[1734398372918,3.1565,214.01,213.96,2.336]
[1734398373122,1.6473,214.01,213.94,2.64]
[1734398373319,1.5092,214.08,213.94,2.64]
[1734398373520,3.0876,214.08,213.97,16.6422984]
[1734398374122,3.0876,214.08,213.99,2.3356]
[1734398374123,2.3349,214.07,213.99,2.3356]
[1734398374324,3.0876,214.08,213.97,16.6422984]
[1734398374623,3.0876,214.08,213.98,2.64]
[1734398374823,3.0876,214.08,213.98,2.3358]
[1734398375028,3.0876,214.08,213.99,2.64]
[1734398375326,2.3351,214.05,213.99,2.64]
[1734398376025,3.0876,214.08,214.0,2.64]
[1734398376225,3.0876,214.08,213.99,2.64]
[1734398376424,2.3355,214.02,213.94,2.3362]
[1734398376629,2.3355,214.02,213.95,2.64]
[1734398377020,3.0876,214.08,213.95,2.64]
[1734398377328,3.0876,214.08,213.95,4.9761]
[1734398377930,3.0876,214.08,213.95,10.60219904]
[1734398378819,3.0876,214.08,213.96,2.336]
[1734398380528,3.0876,214.08,213.95,10.60219904]
[1734398380529,2.3355,214.01,213.95,10.60219904]
[1734398380729,3.0876,214.08,213.93,16.6422984]
[1734398380935,2.3358,213.99,213.94,2.64]
[1734398381127,3.0876,214.08,213.94,2.64]
[1734398381323,1.5784,214.08,213.94,2.64]
[1734398381724,2.3352,214.04,213.94,2.64]
[1734398382727,2.3352,214.04,213.98,2.3358]
[1734398382925,2.3352,214.04,213.99,2.64]
[1734398384137,1.5784,214.08,213.99,2.64]
[1734398384329,1.5784,214.08,214.0,2.3356]
[1734398384536,1.5784,214.08,213.99,2.64]
[1734398385232,2.335,214.05,214.0,2.3356]
[1734398385530,2.335,214.05,213.99,2.64]
[1734398385531,1.5784,214.08,213.99,2.64]
[1734398385928,1.5784,214.08,213.99,13.01358368]
[1734398386128,2.335,214.05,213.99,15.34918368]
[1734398386935,2.3352,214.04,213.99,15.34918368]
[1734398387732,1.5784,214.08,213.96,10.37358368]
[1734398387927,1.5784,214.08,214.0,2.64]
[1734398388528,2.3355,214.02,214.0,2.64]
[1734398389227,2.3353,214.03,214.0,2.64]
[1734398390937,2.3354,214.02,214.0,2.64]
[1734398392030,1.5784,214.08,213.96,10.37358368]
[1734398392232,2.3356,214.0,213.97,2.64]
[1734398392941,11.95198368,214.08,213.93,16.01478788]
[1734398393141,2.3357,213.99,213.94,4.9762]
[1734398393342,2.3357,213.99,213.94,2.64]
[1734398394043,2.3357,213.99,213.94,4.9762]
[1734398396145,2.3357,213.99,213.95,2.64]
[1734398399338,2.3355,214.01,213.95,4.9761]
[1734398399540,11.28728756,214.06,213.96,10.37358368]
[1734398399747,1.5784,214.08,213.96,10.37358368]
[1734398399942,1.5784,214.08,214.0,2.3356]
[1734398400138,1.5784,214.08,214.01,2.64]
[1734398400739,1.5784,214.08,214.01,4.9754]
[1734398401142,2.3349,214.06,214.01,4.9754]
[1734398401739,2.3351,214.05,214.01,2.64]
[1734398402447,2.3352,214.04,214.01,2.64]
[1734398402851,1.5784,214.08,214.01,2.64]
[1734398403147,2.3352,214.04,214.01,2.64]
[1734398403551,1.5784,214.08,214.01,2.64]
[1734398403742,2.3351,214.05,214.01,2.64]
[1734398403942,1.5784,214.08,214.01,2.64]
[1734398404848,2.3351,214.05,214.01,2.64]
[1734398405237,2.3351,214.05,214.02,2.64]
[1734398405938,1.5784,214.08,214.02,2.64]
[1734398406148,1.5784,214.08,213.97,12.70938368]
[1734398406343,11.95198368,214.08,213.98,2.64]
[1734398406539,11.31617046,214.07,213.98,2.64]
[1734398407647,10.37358368,214.05,213.91,10.37358368]
[1734398407854,10.37358368,214.02,213.92,2.64]
[1734398408048,2.3361,213.96,213.93,2.64]
[1734398408350,12.91477046,214.01,213.93,2.64]
[1734398408554,2.3357,214.0,213.95,2.3361]
[1734398409447,2.3357,214.0,213.93,4.9762]
[1734398409645,1.5986,214.01,213.93,2.64]
[1734398409646,2.3357,213.99,213.93,2.64]
[1734398410654,1.5986,214.01,213.93,2.64]
[1734398410854,2.3358,213.98,213.93,2.64]
[1734398411357,1.5986,214.01,213.93,2.64]
[1734398411358,2.3361,213.96,213.93,2.64]
[1734398413055,11.43063979,214.0,213.91,5.65694389]
[1734398413253,1.5986,214.01,213.92,2.64]
[1734398413753,2.3361,213.96,213.92,2.64]
[1734398414358,2.3358,213.99,213.92,2.64]
[1734398414552,1.5986,214.01,213.89,2.3367]
[1734398414855,1.5986,214.01,213.7,25.75425556]
[1734398414856,10.37358368,213.97,213.87,2.64]
[1734398415152,2.3367,213.91,213.87,2.64]
[1734398416870,2.3367,213.91,213.87,8.24295831]
[1734398417858,2.3369,213.88,213.83,2.3374]
[1734398418059,10.37358368,213.94,213.83,2.62]
[1734398418255,11.43583525,213.93,213.83,2.62]
[1734398419661,2.337,213.87,213.83,8.18356408]
[1734398420056,11.43583525,213.93,213.83,8.18356408]
[1734398420257,1.5808,213.96,213.85,10.37358368]
[1734398421760,2.3364,213.93,213.88,2.3368]
[1734398421962,2.3364,213.93,213.89,2.62]
[1734398422258,1.5808,213.96,213.89,2.62]
[1734398422965,2.3362,213.94,213.89,4.9567]
[1734398423955,2.3362,213.94,213.89,2.62]
[1734398424163,2.3361,213.95,213.9,2.3367]
[1734398424758,1.5808,213.96,213.89,2.62]
[1734398424964,2.3362,213.94,213.89,4.9568]
[1734398425965,1.5808,213.96,213.89,2.62]
[1734398426167,1.5808,213.96,213.87,2.62]
[1734398426870,2.3365,213.92,213.87,2.62]
[1734398427069,1.5808,213.96,213.87,2.62]
[1734398427671,13.0180704,213.96,213.87,2.62]
[1734398427868,1.5808,213.96,213.87,2.62]
[1734398428169,1.5808,213.96,213.83,5.56356408]
[1734398428170,10.37358368,213.94,213.83,5.56356408]
[1734398428365,10.37358368,213.94,213.83,8.18356408]
[1734398429569,2.337,213.87,213.83,8.18356408]
[1734398430570,2.337,213.87,213.83,5.56356408]
[1734398431971,2.3366,213.91,213.84,2.3373]
[1734398432271,2.3366,213.91,213.83,5.56356408]
[1734398432272,1.5808,213.96,213.83,5.56356408]
[1734398432677,2.3366,213.92,213.83,5.56356408]
[1734398432872,1.5808,213.96,213.83,5.56356408]
[1734398433077,1.5808,213.96,213.82,12.99358368]
[1734398433271,1.5808,213.96,213.85,10.37358368]
[1734398436284,1.5808,213.96,213.85,2.62]
[1734398436477,1.5808,213.96,213.83,5.53827502]
[1734398436676,10.37358368,213.94,213.84,2.62]
[1734398437279,1.5808,213.96,213.84,2.62]
[1734398437280,10.37358368,213.95,213.84,2.62]
[1734398437580,2.3369,213.88,213.84,2.62]
[1734398438574,2.3365,213.92,213.87,2.337]
[1734398439172,2.3363,213.94,213.87,2.337]
[1734398439373,1.5808,213.96,213.88,2.3368]
[1734398440575,2.3365,213.92,213.88,2.3368]
[1734398440776,1.5808,213.96,213.87,2.337]
[1734398440977,2.3366,213.91,213.85,10.37358368]
[1734398441581,10.37358368,213.95,213.84,2.62]
[1734398442282,10.37358368,213.92,213.84,2.62]
[1734398442587,1.5853,213.91,213.84,2.62]
[1734398442983,1.5853,213.91,213.8,2.62]
[1734398443587,10.37358368,213.89,213.79,5.64552973]
[1734398443886,10.37358368,213.89,213.74,1.4944]
[1734398444084,10.37358368,213.89,213.73,63.83358368]
[1734398444085,10.37358368,213.86,213.75,2.62]
[1734398444387,1.5811,213.85,213.75,2.62]
[1734398444887,1.5811,213.85,213.75,8.290948]
[1734398445982,1.5811,213.85,213.76,10.37358368]
[1734398446185,3.9184,213.85,213.76,10.37358368]
[1734398446783,1.5832,213.88,213.79,10.37358368]
[1734398446989,4.2053,213.91,213.8,2.62]
[1734398447285,2.3369,213.89,213.8,2.62]
[1734398447787,1.5853,213.91,213.8,2.62]
[1734398447980,2.3371,213.86,213.8,2.62]